Cogmind - Beta 14 X2 @@@ ROGUE MODE // 2024.07.31 @ 11:42:58 Player: Spoodle Result: Destroyed by X7-E37(R) with Subdweller Machine Gun Performance ------------- Evolutions (0) 0 Regions Visited (2) 400 Robots Destroyed (16) 80 Value Destroyed (365) 365 Prototype IDs (4) 80 Alien Tech Used (0) 0 Bonus (0) 0 TOTAL SCORE: 925 Bonus ------- None Cogmind --------- Core Integrity 0/250 Matter 252/300 Energy 38/200 System Corruption 0% Temperature Cool (0) Movement Treading (320) Ox2 Location -10/Subcaves Parts ------- > --- POWER (1) -------- Subdweller Power Source > --- PROPULSION (2) --- Light Treads Subdweller Monowheel > --- UTILITY (2) ------ High-capacity Storage Unit > --- WEAPON (2) ------- Subdweller Laser Subdweller Laser > --- INVENTORY (20) --- Ion Engine Medium Storage Unit High-capacity Battery (250) Subdweller Optics Sensor Array Medium Laser Particle Gun Subdweller Laser Assault Rifle Mini Grenade Launcher Mini Grenade Launcher Mining Laser Scrap Shield Fragment (49) Scrap Shield Fragment (47) Scrap Shield Fragment (46) Peak State ------------ > --- POWER ------------ Subdweller Power Source > --- PROPULSION ------- Light Treads Subdweller Monowheel > --- UTILITY ---------- High-capacity Storage Unit > --- WEAPON ----------- Subdweller Laser Subdweller Laser > --- INVENTORY -------- Ion Engine Medium Storage Unit High-capacity Battery Subdweller Optics Sensor Array Medium Laser Particle Gun Subdweller Laser Assault Rifle Mini Grenade Launcher Mini Grenade Launcher Mining Laser Scrap Shield Fragment Scrap Shield Fragment Scrap Shield Fragment [Rating: 12] Favorites ----------- Power Ion Engine Engine Ion Engine Propulsion Light Treads Treads Light Treads Wheel Wheel Utility Weapon Shielding Device Improved Terrain Scanner Storage High-capacity Storage Unit Protection Weapon Shielding Weapon Assault Rifle Energy Gun Medium Laser Ballistic Gun Assault Rifle Launcher Mini Grenade Launcher Special Weapon Mining Laser Build | -11 -10 -10 ------- Run | Yrd Mat Sub Slots Evolved . | . . . Power . | . . . Propulsion . | . . . Utility . | . . . Weapon . | . . . Parts Attached 32 | 8 7 17 Power 3 | 1 1 1 Engine 3 | 1 1 1 Core . | . . . Reactor . | . . . Propulsion 7 | 2 . 5 Treads 5 | 2 . 3 Leg . | . . . Wheel 2 | . . 2 Hover . | . . . Flight . | . . . Utility 6 | 2 4 . Device 2 | 1 1 . Storage 3 | 1 2 . Processor . | . . . Hackware . | . . . Protection 1 | . 1 . Artifact . | . . . Weapon 16 | 3 2 11 Energy Gun 10 | 2 1 7 Energy Cannon . | . . . Ballistic Gun 2 | 1 . 1 Ballistic Cannon . | . . . Launcher 1 | . . 1 Special Weapon 3 | . 1 2 Impact Weapon . | . . . Slashing Weapon . | . . . Piercing Weapon . | . . . Special Melee Weapon . | . . . Unidentified Prototypes . | . . . Parts Lost 6 | . . 6 Power 1 | . . 1 Propulsion 4 | . . 4 Utility 1 | . . 1 Weapon . | . . . Highest Loss Streak 3 | . . 3 To Critical Strikes 1 | . . 1 Average Slot Usage (%) 98 | . 100 94 Engine 12 | . 14 10 Treads 25 | . 28 21 Wheel 1 | . . 5 Device 3 | . 5 . Storage 14 | . 14 14 Protection 10 | . 8 13 Energy Gun 14 | . 12 17 Ballistic Gun 12 | . 14 9 Naked Turns . | . . . Heaviest Build 52 | 13 50 52 Greatest Support 40 | 40 40 40 Greatest Overweight (x) 5 | . 1 5 Average Overweight (x) . | . . 1 Largest Inventory Capacity 20 | 8 20 20 Average Capacity 13 | 7 12 20 Most Carried 16 | 5 10 16 Average Carried 9 | 3 9 12 Final Capacity 20 | 8 20 20 Final Carried 15 | 5 10 15 Class Distribution -------------------- 100% | Mutant Dominant Class ---------------- Mutant | -10/Materials Mutant | -10/Subcaves Resources | -11 -10 -10 ----------- Run | Yrd Mat Sub Matter Collected 577 | 316 111 150 Remotely . | . . . Salvage Created 561 | 130 212 219 Parts 42 | 6 23 13 Haulers Intercepted 1 | . 1 . Recyclers Shooed . | . . . Parts Field Recycled . | . . . Retrieved Matter . | . . . Parts Self-Destructed 8 | . . 8 Prevented . | . . . Kills | -11 -10 -10 ------- Run | Yrd Mat Sub Combat Hostiles Destroyed 10 | . 5 5 Guns 8 | . 5 3 AOE 2 | . . 2 Classes Destroyed 9 | 2 5 2 Tunneler 2 | 2 . . Hauler 1 | . 1 . Recycler 1 | 1 . . Operator 1 | . 1 . Watcher 1 | . 1 . Swarmer 3 | . 3 . Grunt 2 | . 2 . Artisan 2 | . . 2 Subdweller 5 | . . 5 Best Kill Streak 3 | 1 3 2 Combat Bots Only 3 | . 3 2 Max Kills in Single Turn 2 | 1 1 2 Gunslinging . | . . . Exploded 2 | . . 2 Melee . | . . . Uniques/NPCs Destroyed . | . . . Combat | -11 -10 -10 -------- Run | Yrd Mat Sub Hostile Shots Fired 67 | . 13 54 Missed 13 | . 3 10 Damage Taken 1077 | . 100 977 Core 259 | . . 259 Absorbed by Shields . | . . . Redirected to Shielding 55 | . 3 52 Core Remaining (%) 100 | 100 . . Volleys Fired 66 | 12 17 37 Largest 2 | 2 2 2 Hottest 120 | 70 100 120 Shots Fired 123 | 24 31 68 Gun 118 | 24 29 65 Cannon . | . . . Launcher 1 | . . 1 Special 4 | . 2 2 Kinetic 42 | 12 14 16 Thermal 80 | 12 17 51 Explosive 1 | . . 1 Electromagnetic . | . . . Robot Hit Streak 18 | 3 4 18 Robot Miss Streak 3 | 2 3 2 Penetration Max . | . . . Secondary Targets 1 | . 1 . Max Gunslinging Chain 1 | . 1 . Shots Hit Robots 83 | 14 14 55 Core Hits 29 | 4 12 13 Critical Kills . | . . . Critical Parts Destroyed . | . . . Critical Strikes . | . . . Melee Attacks . | . . . Impact . | . . . Slashing . | . . . Piercing . | . . . Sneak Attacks . | . . . Combat Hostiles . | . . . Follow-up Attacks . | . . . Damage Inflicted 1012 | 182 216 614 Guns 904 | 182 209 513 Cannons . | . . . Explosions 101 | . . 101 Melee . | . . . Ramming 7 | . 7 . Kinetic 382 | 95 120 167 Thermal 522 | 87 89 346 Explosive 101 | . . 101 Electromagnetic . | . . . Impact . | . . . Slashing . | . . . Piercing . | . . . Highest Corruption . | . . . Average Corruption . | . . . Corruption Purged . | . . . Corruption Blocked . | . . . Overload Shots . | . . . Overflow Damage . | . . . Projectiles . | . . . Explosions . | . . . Melee . | . . . Knockbacks . | . . . Impact . | . . . Kinetic . | . . . Secondary . | . . . Self-Inflicted Damage 49 | . . 49 Shots 1 | . . 1 Rammed 1 | . 1 . Targets Rammed 1 | . 1 . Kicked . | . . . Crushed . | . . . Highest Temperature 85 | 27 85 16 Average Temperature 15 | 12 23 6 Received Heat Transfer 279 | . 21 258 Siege Activations . | . . . Robots Corrupted . | . . . Combat Hostiles . | . . . Parts Fried . | . . . Impact Corruptions . | . . . Robots Melted . | . . . Combat Hostiles . | . . . Parts Melted 4 | . . 4 Heat Transferred 1138 | 259 259 620 Parts Sabotaged . | . . . Parts Stolen . | . . . Parts Stripped . | . . . Power Chain Reactions . | . . . Alert | -11 -10 -10 ------- Run | Yrd Mat Sub Peak Influence 193 | 15 193 . Initial 9 | . 9 . Average 59 | 5 74 . Maximum Alert Level . | . . . Low Security (%) 100 | 100 100 . Level 1 . | . . . Level 2 . | . . . Level 3 . | . . . Level 4 . | . . . Level 5 . | . . . High Security . | . . . Max Security . | . . . Squads Dispatched 2 | . 2 . Investigation 1 | . 1 . Extermination . | . . . Reinforcement 1 | . 1 . Assault . | . . . Garrison . | . . . Intercept . | . . . Searches Triggered . | . . . Construction Impeded . | . . . Haulers Reinforced . | . . . Active Scanning Responses . | . . . Cargo Convoy Interrupts . | . . . Stealth | -11 -10 -10 --------- Run | Yrd Mat Sub Distress Signals 3 | . 3 . Communications Jammed . | . . . Distress Signals . | . . . Times Spotted 21 | . 15 6 Peak Tracking Total 4 | . 4 2 Tactical Retreats 2 | . 2 . Traps | -11 -10 -10 ------- Run | Yrd Mat Sub Traps Triggered . | . . . Indirectly . | . . . Trap Hack Attempts . | . . . Triggered . | . . . Disarmed . | . . . Reprogrammed . | . . . Reused . | . . . Traps Extracted . | . . . Installed . | . . . Triggered . | . . . Machines | -11 -10 -10 ---------- Run | Yrd Mat Sub Machines Disabled . | . . . Max in Single Turn . | . . . Machines Repaired . | . . . Machines Dismantled . | . . . Machines Sabotaged . | . . . Overloaded Fab Kills . | . . . Hacking | -11 -10 -10 --------- Run | Yrd Mat Sub Machines Accessed 5 | . 5 . Terminals 5 | . 5 . Fabricators . | . . . Repair Stations . | . . . Recycling Units . | . . . Scanalyzers . | . . . Garrison Access . | . . . Total Hacks 25 | . 25 . Successful 15 | . 15 . Failed 10 | . 10 . Catastrophic . | . . . Database Lockouts . | . . . Manual 17 | . 17 . Terminals 25 | . 25 . Fabricators . | . . . Repair Stations . | . . . Recycling Units . | . . . Scanalyzers . | . . . Garrison Access . | . . . Terminal Hacks 7 | . 7 . Robot Analysis 2 | . 2 . Prototype ID Bank 2 | . 2 . Locate Traps 1 | . 1 . Zone Layout 2 | . 2 . Fabricator Hacks . | . . . Repair Station Hacks . | . . . Recycling Unit Hacks . | . . . Scanalyzer . | . . . Garrison Access Hacks . | . . . Unauthorized Hacks 8 | . 8 . Terminals 8 | . 8 . Track 3 | . 3 . Botnet 3 | . 3 . Disrupt 1 | . 1 . Operators 1 | . 1 . Fabricators . | . . . Repair Stations . | . . . Recycling Units . | . . . Scanalyzers . | . . . Garrison Access . | . . . Data Cores Recovered 1 | . 1 . Used . | . . . Hacking Detections 5 | . 5 . Full Trace Events 1 | . 1 . Feedback Events . | . . . Feedback Blocked . | . . . Robot Schematics Acquired . | . . . Robots Built . | . . . Authchips . | . . . Time . | . . . Total Robot Build Rating . | . . . Part Schematics Acquired . | . . . Parts Built . | . . . Authchips . | . . . Time . | . . . Total Part Build Rating . | . . . Parts Repaired . | . . . Time . | . . . Parts Recycled . | . . . Recycled Matter . | . . . Retrieved Matter . | . . . Retrieved Components . | . . . Parts Scanalyzed . | . . . Part Schematics Acquired . | . . . Parts Damaged . | . . . Bothacking | -11 -10 -10 ------------ Run | Yrd Mat Sub Used RIF Installer . | . . . Robots Hacked . | . . . Non-combat . | . . . Combat . | . . . Robot Hacks Applied . | . . . Relay Couplers Released . | . . . Fabnet Peak Effective % . | . . . Robots Rewired . | . . . Allies Hacked . | . . . Hacks Repelled . | . . . Allies | -11 -10 -10 -------- Run | Yrd Mat Sub Total Allies . | . . . Largest Group . | . . . Highest-Rated Group . | . . . Highest-Rated Ally . | . . . Total Orders . | . . . Ally Attacks . | . . . Total Damage . | . . . Kills . | . . . Allies Corrupted . | . . . Allies Melted . | . . . Intel | -11 -10 -10 ------- Run | Yrd Mat Sub Robot Analysis Total 2 | . 2 . Derelict Logs Recovered . | . . . Drone Launches . | . . . Drone Recoveries . | . . . Exploration | -11 -10 -10 ------------- Run | Yrd Mat Sub Turns Passed 1536 | 233 886 417 Spaces Moved 661 | 110 422 129 Core 4 | 4 . . Treads 598 | 106 422 70 Legs . | . . . Wheels 59 | . . 59 Hover . | . . . Flight . | . . . Fastest Speed 50 | 50 160 130 Average Speed 176 | 156 177 193 Slowest Speed 320 | 160 240 320 Overloaded Moves . | . . . Propulsion Burnouts . | . . . Robots Hopped . | . . . Cave-ins Triggered . | . . . Exploration Rate (%) 25 | 9 58 9 Regions Visited 2 Branch Regions 1 Pre-discovered Areas . | . . . Known Exits Taken . | . . . Unknown Exits Taken 2 | 1 1 . Scrap Searched . | . . . Spaces Dug 10 | . 2 8 Terrain Destroyed 10 | . 2 8 Melee . | . . . Projectile 2 | . 2 . AOE 8 | . . 8 Terrain Rammed . | . . . Walls Destroyed . | . . . Machines Disabled . | . . . Actions | -11 -10 -10 --------- Run | Yrd Mat Sub Total 888 | 144 525 219 Wait 99 | 10 62 27 Move 659 | 109 421 129 Hop . | . . . Pick Up 23 | 5 10 8 Fast Attach 9 | 7 . 2 Attach 4 | . . 4 Detach 1 | . . 1 Swap 19 | 1 7 11 Drop 7 | . 7 . Fire 66 | 12 17 37 Melee . | . . . Ram . | . . . Kick . | . . . Crush 1 | . 1 . Escape Stasis . | . . . Rewire . | . . . Trap . | . . . Miscellaneous . | . . . Route ------- -11/Scrapyard -10/Materials (discovered 3 exits: [*Mat] / [*Min] / [*Sub]) -10/Subcaves History --------- Turn | Location | Event 8 | -11/Scrapyard | Discovered new exit (range 15) 234 | -11/Scrapyard | Entered Materials 311 | -10/Materials | Build established: Mutant 515 | -10/Materials | Discovered new exit (range 12) 719 | -10/Materials | Discovered new exit (range 10) 1108 | -10/Materials | Discovered new exit (range 5) 1120 | -10/Materials | Entered Subcaves 1383 | -10/Subcaves | Ambushed by angry Subdweller bent on revenge 1387 | -10/Subcaves | Core integrity fell below 50% 1444 | -10/Subcaves | Core integrity fell below 20% 1490 | -10/Subcaves | Lost 3 parts (1p2n) 1519 | -10/Subcaves | Ambushed by angry Subdweller bent on revenge 1537 | -10/Subcaves | Destroyed by X7-E37(R) with Subdweller Machine Gun Last Messages --------------- 01437_ Ion Engine destroyed. 01455_ Sub. Laser shoots sparks and powers down. 01455_ Wheel destroyed. 01459_ Lgt. Treads destroyed. 01461_ ZP-70M(R) destroyed. 01461_ CD-6CO(R) destroyed. 01470_ Acquired Sub. Monowheel. 01472_ Acquired 31 matter. 01477_ Subatomizers dissect the Sub. Optics. 01477_ Acquired Sub. Laser. 01483_ Acquired 31 matter. 01483_ 6M-Z8R(u) tweaks Twisted Machinery. 01485_ 6M-Z8R(u) builds Twisted Machinery. 01491_ Subatomizers dissect the Sub. Optics. 01507_ 6M-Z8R(u) tweaks Twisted Machinery. 01518_ 6M-Z8R(u) cries out in pain. 01518_ 6M-Z8R(u) destroyed. 01519_ X7-E37(R) angrily emerges from the Twisted Machinery. 01519_ X7-E37(R): "ECOKILL!" 01522_ Weapon Shielding destroyed. Map ----- +----------------------------------------------------+ | ????? #??????????????????????????????????????????? | | ????? #??????????????????????????????????????????? | | ???? #??????????????????????????????????????????? | | ???? #??????????????????????????????????????????? | | ???? #??????????????????????????????????????????? | | ???? #??????????????????????????????????????????? | | ???? #??????????????????????????????????????????? | | ???? ##?????????????????????????????????????????? | | ???? ??????????????????????????????????????????? | | #### #??????????????????????????????????????????? | | ? ?????????????????? ???????????????????????? | | ?# ?????????????????# ???????????????????????? | | ## #?????????????????# ???????????????????????? | | # #?????????????????# ???????????????????????? | | # ##?????????????????# ??##???????????????????? | | ## #?????????????????? ## ##??????????????????? | | # #?????????????????? #??????????????????? | | ## ##??????????????????# #??????????????????? | | # ####???????????????# #?####?????????????? | | # ####????????????? ## #?????????????? | | ### ##????????????# #?????????????? | | #### ##???????????# #??### ???????? | | #??## #?????####### ## ???????? | | ##??## #????## #???????? | | ##### ## ###### ?????????? | | # # #### ##% @ R #????????????????? | | ### % "" ###### #?????? ##??????? | | ## # "" ####### ### ?????? | | # #### " """ ## # ?????? | | # ??# % """ "" | ?????? | | ## ??# # " " % """ ?????? | | ?? ##?## ## # ""###""" ### ?????? | | ?? #??# ### # ####?##"" #??? ??????? | | ?? ??# # #### #?????? #?????? ???????? | | ?? #??# ## ##" # ###???? #??????????????? | | ?? #?## ?# %"" ##??? #??????????????? | | ?? ### ?## %" #???# ##??????????????? | | ?? ## ?# # # ##????# ?????????????????? | | ????## ?# % ### ####????????????????????????? | | ?????## # #?####???????????????????????????? | | ??????## # ####?????????????????????????????? | | ????????#" * #?????????????????????????????? | | ????????##" ! #?????????????????????????????? | | ?????????#"" #????????????????????????????? | | ?????????#" "#???????????????????????????? | | ???????? " """#???????????????????????????? | | ???????? ""# " #???????????????????????????? | | ??????? """" "## " ##???????????????????????????? | | ???????### ###?#" #???????????????????????????? | | ?????????## #???? ##???????????????????????????? | +----------------------------------------------------+ Best States ------------- Heat Dissipation 25 Energy Generation 10 Energy Capacity 250 Matter Stores 300 Matter Capacity 300 Sight Range 16 Robot Scan Range 14 Terrain Scan Range 16 Terrain Scan Density 10 Weapon Shielding 33 Evasion (%) 40 Recoil Reduction 2 Item Schematics ----------------- None Robot Schematics ------------------ None Fabricated ------------ Nothing Alien Tech Used ----------------- None Achievements -------------- None Challenges ------------ None Game ------ Seed RagnarokActuatorWand Manual? 0 Play Time 00:14:05 Cumulative 150.3 hours Start 2024.07.31 @ 11:29:01 End 2024.07.31 @ 11:42:58 Sessions 1 Manual Loads 0 Difficulty Rogue Special Mode None Game No. 77 Rogue 77 Adventurer 0 Explorer 0 Win Type - Total 4 Types 3/0/1/0/0/0/0/0/0 Lore% 59 Gallery% 62 Achievement% 56 Wizard Run 0 Options --------- Layout 0 ASCII 0 Keyboard 0 Movement Mouse Keybinds 0 Fullscreen 2 Font 18/SmallcapsGlow Map View 76x50 Zoom Use 0% Tactical HUD 1 Map Filters NONE Filters NONE Steam 1 RUN: 1c43432e-6e71-4f25-883e-2f46d5990127